[Event "*** Titled Tuesday Blitz"]
[Site "Chess.com"]
[Date "2021.04.06"]
[Round "10"]
[White "Spencenzug"]
[Black "ffbp3q"]
[Result "0-1"]
[WhiteElo "2262"]
[BlackElo "2380"]
[TimeControl "180+1"]
[EndTime "11:56:01 PDT"]
[Termination "ffbp3q won on time"]

1. e4 {[%clk 0:03:00.9]} 1... c5 {[%clk 0:02:59.3]} 2. Nf3 {[%clk 0:03:00.8]}
2... d6 {[%clk 0:02:58.4]} 3. d4 {[%clk 0:02:59.6]} 3... cxd4 {[%clk 0:02:58.6]}
4. Nxd4 {[%clk 0:03:00.5]} 4... Nf6 {[%clk 0:02:58.8]} 5. Nc3 {[%clk 0:03:00.7]}
5... a6 {[%clk 0:02:59.2]} 6. Be2 {[%clk 0:03:00.9]} 6... e5 {[%clk 0:02:58.6]}
7. Nb3 {[%clk 0:03:01.1]} 7... Be7 {[%clk 0:02:58.4]} 8. O-O {[%clk 0:03:01.7]}
8... O-O {[%clk 0:02:56.8]} 9. Be3 {[%clk 0:03:02.3]} 9... b5 {[%clk 0:02:47.3]}
10. a4 {[%clk 0:03:00.5]} 10... b4 {[%clk 0:02:44.8]} 11. Nd5 {[%clk 0:03:00.7]}
11... Nbd7 {[%clk 0:02:31.6]} 12. Nxb4 {[%clk 0:02:13.7]} 12... Bb7 {[%clk
0:02:27.7]} 13. f3 {[%clk 0:02:07.7]} 13... Nb6 {[%clk 0:02:19.1]} 14. a5 {[%clk
0:01:57.1]} 14... Nbd7 {[%clk 0:02:15]} 15. Bc4 {[%clk 0:01:50.1]} 15... Qc7
{[%clk 0:02:13.6]} 16. Bd5 {[%clk 0:01:29.8]} 16... Nxd5 {[%clk 0:02:12.3]} 17.
Nxd5 {[%clk 0:01:30.7]} 17... Bxd5 {[%clk 0:02:11.6]} 18. exd5 {[%clk 0:01:31]}
18... Rac8 {[%clk 0:02:05.3]} 19. c3 {[%clk 0:01:28.3]} 19... f5 {[%clk
0:02:03.4]} 20. Qd3 {[%clk 0:01:18.6]} 20... Qb7 {[%clk 0:02:03.1]} 21. Ra3
{[%clk 0:01:10.9]} 21... Rb8 {[%clk 0:01:56.2]} 22. Rd1 {[%clk 0:01:06.8]} 22...
g6 {[%clk 0:01:46.3]} 23. c4 {[%clk 0:01:00.1]} 23... Rfc8 {[%clk 0:01:24.4]}
24. c5 {[%clk 0:00:35]} 24... dxc5 {[%clk 0:01:17.6]} 25. d6 {[%clk 0:00:34.3]}
25... Bf6 {[%clk 0:01:15.7]} 26. Qc4+ {[%clk 0:00:30.2]} 26... Kg7 {[%clk
0:01:13.7]} 27. Bxc5 {[%clk 0:00:21.4]} 27... Qc6 {[%clk 0:00:43.9]} 28. Rc1
{[%clk 0:00:08.9]} 28... Rb5 {[%clk 0:00:38.4]} 29. Qe6 {[%clk 0:00:03]} 29...
Nxc5 {[%clk 0:00:32.4]} 30. Nxc5 {[%clk 0:00:02.5]} 30... Rxc5 {[%clk
0:00:32.5]} 31. Rac3 {[%clk 0:00:01]} 31... Re8 {[%clk 0:00:15.2]} 0-1

[Event "*** Titled Tuesday Blitz"]
[Site "Chess.com"]
[Date "2021.04.06"]
[Round "10"]
[White "Larciano"]
[Black "campomania3"]
[Result "1-0"]
[WhiteElo "1993"]
[BlackElo "2177"]
[TimeControl "180+1"]
[EndTime "11:56:01 PDT"]
[Termination "Larciano won on time"]

1. e4 {[%clk 0:03:00.9]} 1... d5 {[%clk 0:03:00]} 2. exd5 {[%clk 0:03:00.2]}
2... Nf6 {[%clk 0:03:00.5]} 3. Nc3 {[%clk 0:02:59.9]} 3... Nxd5 {[%clk
0:03:00.8]} 4. d4 {[%clk 0:02:59.3]} 4... Nc6 {[%clk 0:03:00.3]} 5. Nf3 {[%clk
0:02:57]} 5... Bg4 {[%clk 0:02:59.1]} 6. Be3 {[%clk 0:02:54.4]} 6... e6 {[%clk
0:02:55.8]} 7. Bd3 {[%clk 0:02:54.4]} 7... Be7 {[%clk 0:02:53.8]} 8. O-O {[%clk
0:02:54.1]} 8... O-O {[%clk 0:02:48.6]} 9. h3 {[%clk 0:02:54.3]} 9... Bh5 {[%clk
0:02:47.1]} 10. a3 {[%clk 0:02:52.2]} 10... a6 {[%clk 0:02:45]} 11. Re1 {[%clk
0:02:52.4]} 11... b5 {[%clk 0:02:29.8]} 12. Ne4 {[%clk 0:02:52.2]} 12... Bg6
{[%clk 0:02:26.5]} 13. Ng3 {[%clk 0:02:49.5]} 13... Bf6 {[%clk 0:02:00.9]} 14.
c3 {[%clk 0:02:49.1]} 14... Nxe3 {[%clk 0:01:55.7]} 15. Rxe3 {[%clk 0:02:46.8]}
15... Ne7 {[%clk 0:01:50.6]} 16. Bxg6 {[%clk 0:02:41.1]} 16... hxg6 {[%clk
0:01:49.9]} 17. Ne5 {[%clk 0:02:35.4]} 17... Qd5 {[%clk 0:01:37.8]} 18. Qe1
{[%clk 0:02:30.3]} 18... Rfd8 {[%clk 0:01:27.2]} 19. Re2 {[%clk 0:02:16.2]}
19... c5 {[%clk 0:01:23.7]} 20. dxc5 {[%clk 0:02:15.5]} 20... Qxc5 {[%clk
0:01:22]} 21. Nf3 {[%clk 0:02:08.3]} 21... Nd5 {[%clk 0:01:12.3]} 22. Rd1 {[%clk
0:02:06.7]} 22... Nf4 {[%clk 0:01:10.2]} 23. Red2 {[%clk 0:02:06.7]} 23... Qc6
{[%clk 0:00:53.7]} 24. Ne4 {[%clk 0:01:52.6]} 24... Rxd2 {[%clk 0:00:51]} 25.
Rxd2 {[%clk 0:01:52.4]} 25... Nd5 {[%clk 0:00:48.5]} 26. Qd1 {[%clk 0:01:49.1]}
26... a5 {[%clk 0:00:37]} 27. Nd4 {[%clk 0:01:46.6]} 27... Bxd4 {[%clk
0:00:35.5]} 28. Rxd4 {[%clk 0:01:46]} 28... Rc8 {[%clk 0:00:28]} 29. Qd2 {[%clk
0:01:32]} 29... f5 {[%clk 0:00:13.8]} 30. Ng3 {[%clk 0:01:26.8]} 30... b4 {[%clk
0:00:11.5]} 31. axb4 {[%clk 0:01:25.4]} 31... axb4 {[%clk 0:00:11.5]} 32. c4
{[%clk 0:01:20.3]} 32... Nf6 {[%clk 0:00:09.8]} 33. b3 {[%clk 0:01:20.2]} 33...
e5 {[%clk 0:00:07.9]} 34. Rd6 {[%clk 0:01:17.8]} 34... Qc5 {[%clk 0:00:06.5]}
35. Nf1 {[%clk 0:01:05.8]} 35... Ne4 {[%clk 0:00:05.7]} 36. Qd5+ {[%clk
0:01:04.2]} 36... Qxd5 {[%clk 0:00:05]} 37. Rxd5 {[%clk 0:01:04.1]} 37... Ra8
{[%clk 0:00:04.6]} 38. Rb5 {[%clk 0:01:03.8]} 38... Ra1 {[%clk 0:00:04.3]} 39.
Rd5 {[%clk 0:00:57.5]} 39... Nc3 {[%clk 0:00:04.3]} 40. Rd8+ {[%clk 0:00:53.1]}
40... Kh7 {[%clk 0:00:03.6]} 41. f3 {[%clk 0:00:51.8]} 41... Ne2+ {[%clk
0:00:01.7]} 42. Kf2 {[%clk 0:00:51.7]} 42... Nf4 {[%clk 0:00:01.8]} 43. g3
{[%clk 0:00:49.8]} 43... Ne6 {[%clk 0:00:01.6]} 44. Rb8 {[%clk 0:00:48.9]} 1-0

[Event "*** Titled Tuesday Blitz"]
[Site "Chess.com"]
[Date "2021.04.06"]
[Round "10"]
[White "Tpros"]
[Black "The_filthy"]
[Result "1-0"]
[WhiteElo "2514"]
[BlackElo "2382"]
[TimeControl "180+1"]
[EndTime "11:56:03 PDT"]
[Termination "Tpros won by checkmate"]

1. c4 {[%clk 0:03:00.9]} 1... c6 {[%clk 0:02:59.8]} 2. e3 {[%clk 0:03:00.6]}
2... Nf6 {[%clk 0:02:59.8]} 3. Nf3 {[%clk 0:03:00.9]} 3... g6 {[%clk 0:02:59.7]}
4. b3 {[%clk 0:03:01.2]} 4... Bg7 {[%clk 0:03:00.1]} 5. Bb2 {[%clk 0:03:02]}
5... O-O {[%clk 0:03:00.5]} 6. d3 {[%clk 0:03:02.2]} 6... d5 {[%clk 0:03:00.9]}
7. Nbd2 {[%clk 0:03:02.6]} 7... Nbd7 {[%clk 0:03:00.6]} 8. h3 {[%clk 0:03:02]}
8... Re8 {[%clk 0:03:00.3]} 9. Ne5 {[%clk 0:02:58.3]} 9... Nxe5 {[%clk
0:02:58.9]} 10. Bxe5 {[%clk 0:02:59.2]} 10... Nh5 {[%clk 0:02:32]} 11. Bxg7
{[%clk 0:02:55.4]} 11... Nxg7 {[%clk 0:02:32]} 12. Be2 {[%clk 0:02:55.7]} 12...
e5 {[%clk 0:02:31.3]} 13. O-O {[%clk 0:02:53.3]} 13... d4 {[%clk 0:02:30.9]} 14.
e4 {[%clk 0:02:49.2]} 14... c5 {[%clk 0:02:24.5]} 15. a3 {[%clk 0:02:49.1]}
15... f5 {[%clk 0:02:19]} 16. b4 {[%clk 0:02:46.2]} 16... b6 {[%clk 0:02:17.8]}
17. Bf3 {[%clk 0:02:43.9]} 17... f4 {[%clk 0:02:11.1]} 18. Nb3 {[%clk
0:02:34.2]} 18... Qd6 {[%clk 0:02:05.4]} 19. Qd2 {[%clk 0:02:30]} 19... h5
{[%clk 0:02:01.1]} 20. bxc5 {[%clk 0:02:28.5]} 20... bxc5 {[%clk 0:02:01.2]} 21.
Qa5 {[%clk 0:02:28.5]} 21... Ne6 {[%clk 0:02:01]} 22. Rfb1 {[%clk 0:02:24.9]}
22... Bd7 {[%clk 0:01:53.6]} 23. Rb2 {[%clk 0:02:22.7]} 23... Rec8 {[%clk
0:01:50.3]} 24. Rab1 {[%clk 0:02:19.1]} 24... Ng5 {[%clk 0:01:49.7]} 25. Nd2
{[%clk 0:02:18.2]} 25... Nf7 {[%clk 0:01:15]} 26. Bd1 {[%clk 0:02:04.7]} 26...
Nd8 {[%clk 0:01:14.6]} 27. Ba4 {[%clk 0:02:03.5]} 27... Nc6 {[%clk 0:01:06.1]}
28. Qa6 {[%clk 0:01:40.5]} 28... Qc7 {[%clk 0:00:43]} 29. Rb7 {[%clk 0:01:33.5]}
29... Qd8 {[%clk 0:00:43.1]} 30. Nb3 {[%clk 0:01:21.5]} 30... Nb8 {[%clk
0:00:39.4]} 31. Qxg6+ {[%clk 0:01:20.6]} 31... Kf8 {[%clk 0:00:36.8]} 32. Qh6+
{[%clk 0:01:08.4]} 32... Ke7 {[%clk 0:00:31.1]} 33. Qg5+ {[%clk 0:01:02.7]}
33... Kd6 {[%clk 0:00:30.8]} 34. Qh6+ {[%clk 0:00:47.8]} 34... Be6 {[%clk
0:00:30]} 35. Qxh5 {[%clk 0:00:35.2]} 35... Nc6 {[%clk 0:00:28.1]} 36. Qh7
{[%clk 0:00:21]} 36... Rab8 {[%clk 0:00:20.4]} 37. Bxc6 {[%clk 0:00:20.4]} 37...
Rxc6 {[%clk 0:00:18.1]} 38. Na5 {[%clk 0:00:19.1]} 38... Rxb7 {[%clk 0:00:12.7]}
39. Nxb7# {[%clk 0:00:18.1]} 1-0

[Event "*** Titled Tuesday Blitz"]
[Site "Chess.com"]
[Date "2021.04.06"]
[Round "10"]
[White "kleopl"]
[Black "oogee"]
[Result "1-0"]
[WhiteElo "2555"]
[BlackElo "2391"]
[TimeControl "180+1"]
[EndTime "11:56:05 PDT"]
[Termination "kleopl won by resignation"]

1. c4 {[%clk 0:03:00.9]} 1... e5 {[%clk 0:02:58.6]} 2. Nc3 {[%clk 0:03:00.6]}
2... Nc6 {[%clk 0:02:57.9]} 3. Nf3 {[%clk 0:03:00.4]} 3... f5 {[%clk 0:02:57.7]}
4. g3 {[%clk 0:02:59.5]} 4... Nf6 {[%clk 0:02:57.1]} 5. d4 {[%clk 0:02:59]} 5...
e4 {[%clk 0:02:53.8]} 6. Nh4 {[%clk 0:02:58.3]} 6... Bb4 {[%clk 0:02:49.8]} 7.
Nxf5 {[%clk 0:02:54.5]} 7... O-O {[%clk 0:02:48.5]} 8. Ne3 {[%clk 0:02:42.6]}
8... d5 {[%clk 0:02:43.4]} 9. cxd5 {[%clk 0:02:36.3]} 9... Nxd5 {[%clk
0:02:41.4]} 10. Nxd5 {[%clk 0:02:29.2]} 10... Qxd5 {[%clk 0:02:41.2]} 11. e3
{[%clk 0:02:10.5]} 11... Kh8 {[%clk 0:02:23.3]} 12. Bg2 {[%clk 0:02:03.9]} 12...
Qc4 {[%clk 0:02:13.4]} 13. Bxe4 {[%clk 0:01:47.4]} 13... Bg4 {[%clk 0:02:02.6]}
14. Qd3 {[%clk 0:01:40.7]} 14... Qf7 {[%clk 0:01:48.3]} 15. O-O {[%clk
0:01:36.4]} 15... Rad8 {[%clk 0:01:39.2]} 16. Qb5 {[%clk 0:01:18.5]} 16... Bf3
{[%clk 0:01:30.1]} 17. Bxc6 {[%clk 0:01:03.8]} 17... Bxc6 {[%clk 0:01:10.4]} 18.
Qxb4 {[%clk 0:01:03.3]} 18... Qf3 {[%clk 0:01:09.3]} 19. e4 {[%clk 0:01:01.3]}
19... Rf5 {[%clk 0:00:44.4]} 20. d5 {[%clk 0:00:43.1]} 20... Rdxd5 {[%clk
0:00:36.8]} 21. exd5 {[%clk 0:00:32.8]} 21... Rxd5 {[%clk 0:00:36.5]} 22. Qe4
{[%clk 0:00:32.7]} 22... Qf7 {[%clk 0:00:23.4]} 23. Bf4 {[%clk 0:00:20]} 23...
Rd8 {[%clk 0:00:22.4]} 24. Qe2 {[%clk 0:00:16.4]} 24... Re8 {[%clk 0:00:21.4]}
25. Qg4 {[%clk 0:00:16.5]} 25... Qc4 {[%clk 0:00:18.4]} 26. Rfe1 {[%clk
0:00:15.6]} 26... Rf8 {[%clk 0:00:17.6]} 27. Qe2 {[%clk 0:00:13.1]} 27... Qc5
{[%clk 0:00:16.7]} 28. Qe7 {[%clk 0:00:12.3]} 28... Qf5 {[%clk 0:00:15.5]} 29.
Re5 {[%clk 0:00:12]} 29... Qc8 {[%clk 0:00:13.8]} 30. Rae1 {[%clk 0:00:10.8]}
30... h6 {[%clk 0:00:13.6]} 31. Re6 {[%clk 0:00:09.3]} 31... Re8 {[%clk
0:00:12.7]} 32. Qxe8+ {[%clk 0:00:08.7]} 32... Bxe8 {[%clk 0:00:11.8]} 33. Rxe8+
{[%clk 0:00:09.6]} 33... Qxe8 {[%clk 0:00:12.1]} 34. Rxe8+ {[%clk 0:00:09.5]}
34... Kh7 {[%clk 0:00:13]} 35. Re7 {[%clk 0:00:10.4]} 35... Kg6 {[%clk
0:00:13.4]} 36. Rxc7 {[%clk 0:00:10.7]} 1-0

[Event "*** Titled Tuesday Blitz"]
[Site "Chess.com"]
[Date "2021.04.06"]
[Round "10"]
[White "muchojogo"]
[Black "Anton_Demchenko"]
[Result "1-0"]
[WhiteElo "2466"]
[BlackElo "2820"]
[TimeControl "180+1"]
[EndTime "11:56:05 PDT"]
[Termination "muchojogo won by resignation"]

1. d4 {[%clk 0:03:00.9]} 1... Nf6 {[%clk 0:03:00.3]} 2. Bf4 {[%clk 0:03:01.3]}
2... d5 {[%clk 0:02:53.4]} 3. e3 {[%clk 0:03:01.7]} 3... c5 {[%clk 0:02:52.2]}
4. c3 {[%clk 0:03:02.1]} 4... Nc6 {[%clk 0:02:52.5]} 5. Nd2 {[%clk 0:03:02.3]}
5... Bf5 {[%clk 0:02:51.4]} 6. Qb3 {[%clk 0:02:58.2]} 6... Qc8 {[%clk 0:02:44]}
7. Ngf3 {[%clk 0:02:56.7]} 7... e6 {[%clk 0:02:43.4]} 8. Nh4 {[%clk 0:02:45.1]}
8... Bg4 {[%clk 0:02:42.1]} 9. h3 {[%clk 0:02:34.4]} 9... Bh5 {[%clk 0:02:42.6]}
10. g4 {[%clk 0:02:26.2]} 10... Bg6 {[%clk 0:02:43]} 11. Nxg6 {[%clk 0:02:26.8]}
11... hxg6 {[%clk 0:02:42.8]} 12. Bg2 {[%clk 0:02:21.7]} 12... Be7 {[%clk
0:02:41.7]} 13. O-O {[%clk 0:02:10.7]} 13... Nd7 {[%clk 0:02:38.2]} 14. Bg3
{[%clk 0:01:50.2]} 14... Bd8 {[%clk 0:02:34.9]} 15. e4 {[%clk 0:01:45.7]} 15...
c4 {[%clk 0:02:17.4]} 16. Qc2 {[%clk 0:01:42.6]} 16... Nb6 {[%clk 0:02:17.5]}
17. exd5 {[%clk 0:01:40.2]} 17... exd5 {[%clk 0:02:17.4]} 18. Rae1+ {[%clk
0:01:39.4]} 18... Kf8 {[%clk 0:02:11.8]} 19. Bd6+ {[%clk 0:01:38]} 19... Kg8
{[%clk 0:02:12.4]} 20. Bc5 {[%clk 0:01:27.8]} 20... Qd7 {[%clk 0:02:08.8]} 21.
Nf3 {[%clk 0:01:19.7]} 21... Bc7 {[%clk 0:02:04]} 22. Re2 {[%clk 0:01:11.3]}
22... Nc8 {[%clk 0:01:50.7]} 23. Rfe1 {[%clk 0:01:07.3]} 23... Nb6 {[%clk
0:01:28.6]} 24. Ng5 {[%clk 0:00:58.7]} 24... Bf4 {[%clk 0:01:22.6]} 25. Re7
{[%clk 0:00:54.4]} 25... Nxe7 {[%clk 0:01:13.6]} 26. Rxe7 {[%clk 0:00:55.3]}
26... Qc6 {[%clk 0:01:04.3]} 27. Nxf7 {[%clk 0:00:51.7]} 27... Rh4 {[%clk
0:00:51.8]} 28. Ne5 {[%clk 0:00:46.8]} 28... Bxe5 {[%clk 0:00:50.1]} 29. Rxe5
{[%clk 0:00:47.7]} 29... Kh8 {[%clk 0:00:42.6]} 30. Bxb6 {[%clk 0:00:38.6]}
30... axb6 {[%clk 0:00:40.2]} 31. Bxd5 {[%clk 0:00:39.1]} 31... Qf6 {[%clk
0:00:40.6]} 32. Bg2 {[%clk 0:00:31.5]} 32... Rf8 {[%clk 0:00:37.6]} 33. Qe2
{[%clk 0:00:28.4]} 33... Rh6 {[%clk 0:00:21.6]} 34. g5 {[%clk 0:00:26.7]} 34...
Qf4 {[%clk 0:00:20.3]} 35. gxh6 {[%clk 0:00:25.6]} 35... Qxh6 {[%clk 0:00:20.5]}
36. Qe3 {[%clk 0:00:24.6]} 36... Rf4 {[%clk 0:00:16.5]} 37. Re4 {[%clk
0:00:20.6]} 37... Rxe4 {[%clk 0:00:14.8]} 38. Qxh6+ {[%clk 0:00:20.2]} 1-0

[Event "*** Titled Tuesday Blitz"]
[Site "Chess.com"]
[Date "2021.04.06"]
[Round "10"]
[White "Tekushka"]
[Black "rachidhuilda"]
[Result "0-1"]
[WhiteElo "2391"]
[BlackElo "2286"]
[TimeControl "180+1"]
[EndTime "11:56:06 PDT"]
[Termination "rachidhuilda won on time"]

1. e4 {[%clk 0:03:00.9]} 1... d5 {[%clk 0:02:59.5]} 2. exd5 {[%clk 0:03:00.2]}
2... Qxd5 {[%clk 0:03:00.1]} 3. Nf3 {[%clk 0:03:00.5]} 3... Bg4 {[%clk
0:02:59.5]} 4. Be2 {[%clk 0:03:00.4]} 4... Nc6 {[%clk 0:02:59.9]} 5. h3 {[%clk
0:02:58.8]} 5... Bxf3 {[%clk 0:02:56.4]} 6. Bxf3 {[%clk 0:02:58.6]} 6... Qe5+
{[%clk 0:02:55.8]} 7. Qe2 {[%clk 0:02:57.9]} 7... Qxe2+ {[%clk 0:02:55]} 8. Bxe2
{[%clk 0:02:57.6]} 8... Nd4 {[%clk 0:02:54.1]} 9. Bd1 {[%clk 0:02:55.8]} 9...
O-O-O {[%clk 0:02:53.7]} 10. c3 {[%clk 0:02:52.5]} 10... Nc6 {[%clk 0:02:52.7]}
11. Bb3 {[%clk 0:02:30.4]} 11... Ne5 {[%clk 0:02:25.3]} 12. Ke2 {[%clk
0:02:19.8]} 12... e6 {[%clk 0:02:20.9]} 13. d4 {[%clk 0:02:19.5]} 13... Ng6
{[%clk 0:02:21]} 14. Be3 {[%clk 0:02:10.5]} 14... Bd6 {[%clk 0:02:19.5]} 15. Nd2
{[%clk 0:02:02]} 15... Nf4+ {[%clk 0:02:02.6]} 16. Kf1 {[%clk 0:02:00.7]} 16...
Ne7 {[%clk 0:01:55.6]} 17. Ne4 {[%clk 0:01:55]} 17... Nfd5 {[%clk 0:01:48.1]}
18. Nxd6+ {[%clk 0:01:54]} 18... cxd6 {[%clk 0:01:25.5]} 19. Bd2 {[%clk
0:01:51.7]} 19... Nc6 {[%clk 0:01:18.5]} 20. Ke2 {[%clk 0:01:24.6]} 20... Nb6
{[%clk 0:01:12.9]} 21. Kd3 {[%clk 0:01:20.4]} 21... d5 {[%clk 0:01:12.8]} 22.
Rae1 {[%clk 0:01:15.8]} 22... Kd7 {[%clk 0:01:09.7]} 23. Bc1 {[%clk 0:01:07.8]}
23... Rc8 {[%clk 0:01:08]} 24. f4 {[%clk 0:01:02.9]} 24... g6 {[%clk 0:01:07.7]}
25. g4 {[%clk 0:01:02.5]} 25... h5 {[%clk 0:01:07.2]} 26. Bd1 {[%clk 0:00:59.2]}
26... hxg4 {[%clk 0:01:06.9]} 27. hxg4 {[%clk 0:00:58.6]} 27... Nc4 {[%clk
0:01:04.2]} 28. Bf3 {[%clk 0:00:41.9]} 28... Nd6 {[%clk 0:01:03.1]} 29. b3
{[%clk 0:00:33]} 29... f5 {[%clk 0:00:58.5]} 30. g5 {[%clk 0:00:30.2]} 30... Ne4
{[%clk 0:00:58.2]} 31. Bxe4 {[%clk 0:00:13.8]} 31... fxe4+ {[%clk 0:00:55.7]}
32. Ke3 {[%clk 0:00:13]} 32... Ne7 {[%clk 0:00:56.3]} 33. Bd2 {[%clk 0:00:11.2]}
33... Nf5+ {[%clk 0:00:56.7]} 34. Kf2 {[%clk 0:00:11.3]} 34... b5 {[%clk
0:00:53.8]} 35. Ra1 {[%clk 0:00:07]} 35... b4 {[%clk 0:00:49.8]} 36. Rac1 {[%clk
0:00:05.7]} 36... bxc3 {[%clk 0:00:49.3]} 37. Rxh8 {[%clk 0:00:03.3]} 37... cxd2
{[%clk 0:00:37.8]} 38. Rhxc8 {[%clk 0:00:02.2]} 38... dxc1=Q {[%clk 0:00:33.1]}
39. Rxc1 {[%clk 0:00:01.2]} 39... Nxd4 {[%clk 0:00:33.7]} 0-1

[Event "*** Titled Tuesday Blitz"]
[Site "Chess.com"]
[Date "2021.04.06"]
[Round "10"]
[White "aaaao"]
[Black "kinga2008"]
[Result "1-0"]
[WhiteElo "2582"]
[BlackElo "2261"]
[TimeControl "180+1"]
[EndTime "11:56:07 PDT"]
[Termination "aaaao won by resignation"]

1. e4 {[%clk 0:02:59.1]} 1... g6 {[%clk 0:02:59.5]} 2. Nf3 {[%clk 0:02:58.7]}
2... Bg7 {[%clk 0:02:58.7]} 3. Bc4 {[%clk 0:02:59.1]} 3... e6 {[%clk 0:02:58.4]}
4. O-O {[%clk 0:02:59]} 4... Ne7 {[%clk 0:02:58.1]} 5. Bb3 {[%clk 0:02:58.5]}
5... O-O {[%clk 0:02:58.7]} 6. d4 {[%clk 0:02:58.6]} 6... d5 {[%clk 0:02:42.6]}
7. e5 {[%clk 0:02:58]} 7... c5 {[%clk 0:02:38.3]} 8. c3 {[%clk 0:02:58.1]} 8...
Nf5 {[%clk 0:02:29.5]} 9. Bc2 {[%clk 0:02:57.6]} 9... cxd4 {[%clk 0:02:25.5]}
10. cxd4 {[%clk 0:02:57.6]} 10... Nc6 {[%clk 0:02:25]} 11. Nc3 {[%clk
0:02:57.6]} 11... Bd7 {[%clk 0:02:19.2]} 12. Bg5 {[%clk 0:02:49.4]} 12... Qb6
{[%clk 0:02:18]} 13. Bxf5 {[%clk 0:02:49]} 13... gxf5 {[%clk 0:02:17]} 14. Qd2
{[%clk 0:02:49.1]} 14... f6 {[%clk 0:02:08.6]} 15. exf6 {[%clk 0:02:41.4]} 15...
Bxf6 {[%clk 0:02:07.4]} 16. Rad1 {[%clk 0:02:31.8]} 16... Qd8 {[%clk 0:01:59.6]}
17. Rfe1 {[%clk 0:02:25.4]} 17... Kh8 {[%clk 0:01:53.1]} 18. Qf4 {[%clk
0:02:10.2]} 18... Rg8 {[%clk 0:01:48]} 19. h4 {[%clk 0:02:10.1]} 19... Bxg5
{[%clk 0:01:44.1]} 20. Nxg5 {[%clk 0:02:10.1]} 20... Qf6 {[%clk 0:01:38.8]} 21.
Qd6 {[%clk 0:02:08.7]} 21... h6 {[%clk 0:01:29]} 22. Qxd7 {[%clk 0:02:06.7]}
22... hxg5 {[%clk 0:01:26.8]} 23. Rxe6 {[%clk 0:02:06.6]} 23... Qg7 {[%clk
0:01:25.9]} 24. Qd6 {[%clk 0:01:57.8]} 24... Kh7 {[%clk 0:01:19.5]} 25. Nxd5
{[%clk 0:01:55.7]} 25... Rad8 {[%clk 0:01:13.1]} 26. Nf6+ {[%clk 0:01:48.5]}
26... Kh8 {[%clk 0:01:04.3]} 27. Nd7 {[%clk 0:01:30.2]} 27... Kh7 {[%clk
0:00:39.8]} 28. Qh2 {[%clk 0:00:48.4]} 28... g4 {[%clk 0:00:28.4]} 29. Nf6+
{[%clk 0:00:48.2]} 29... Kh8 {[%clk 0:00:24.7]} 30. Nxg8 {[%clk 0:00:43.4]}
30... Rxg8 {[%clk 0:00:23.6]} 31. Qf4 {[%clk 0:00:42.4]} 31... Rf8 {[%clk
0:00:13.9]} 32. d5 {[%clk 0:00:39.1]} 32... Nd8 {[%clk 0:00:07.8]} 33. Rh6+
{[%clk 0:00:38.9]} 33... Kg8 {[%clk 0:00:07.3]} 34. d6 {[%clk 0:00:34.4]} 34...
Nf7 {[%clk 0:00:05.5]} 35. Re6 {[%clk 0:00:34.2]} 35... Nd8 {[%clk 0:00:02.6]}
36. Re7 {[%clk 0:00:34]} 36... Qf6 {[%clk 0:00:02.5]} 37. Rde1 {[%clk
0:00:27.2]} 37... Qf7 {[%clk 0:00:02.3]} 38. Rxf7 {[%clk 0:00:27.2]} 1-0

[Event "*** Titled Tuesday Blitz"]
[Site "Chess.com"]
[Date "2021.04.06"]
[Round "10"]
[White "Nozdrachev_Leonid"]
[Black "CrushingKings"]
[Result "1/2-1/2"]
[WhiteElo "2569"]
[BlackElo "2480"]
[TimeControl "180+1"]
[EndTime "11:56:09 PDT"]
[Termination "Game drawn by repetition"]

1. e4 {[%clk 0:03:00.9]} 1... c5 {[%clk 0:02:59.7]} 2. c3 {[%clk 0:03:00]} 2...
Nf6 {[%clk 0:02:57.3]} 3. e5 {[%clk 0:02:58.9]} 3... Nd5 {[%clk 0:02:57.9]} 4.
d4 {[%clk 0:02:59.5]} 4... e6 {[%clk 0:02:57.7]} 5. Nf3 {[%clk 0:02:59.3]} 5...
cxd4 {[%clk 0:02:56.9]} 6. cxd4 {[%clk 0:02:58]} 6... b6 {[%clk 0:02:57.2]} 7.
Bc4 {[%clk 0:02:54.7]} 7... Ba6 {[%clk 0:02:57.1]} 8. Bxa6 {[%clk 0:02:52.2]}
8... Nxa6 {[%clk 0:02:58]} 9. O-O {[%clk 0:02:51.4]} 9... Nab4 {[%clk
0:02:52.6]} 10. Nc3 {[%clk 0:02:47.9]} 10... Rc8 {[%clk 0:02:51.5]} 11. Bd2
{[%clk 0:02:45.2]} 11... d6 {[%clk 0:02:50.4]} 12. a3 {[%clk 0:02:34.9]} 12...
Nxc3 {[%clk 0:02:45]} 13. bxc3 {[%clk 0:02:34.2]} 13... Nd5 {[%clk 0:02:44.6]}
14. Qb3 {[%clk 0:02:25.5]} 14... dxe5 {[%clk 0:02:41.2]} 15. Nxe5 {[%clk
0:02:26.4]} 15... Bd6 {[%clk 0:02:41.2]} 16. Qa4+ {[%clk 0:02:12.6]} 16... Kf8
{[%clk 0:02:39.6]} 17. Qxa7 {[%clk 0:02:04.8]} 17... Bxe5 {[%clk 0:02:36.3]} 18.
dxe5 {[%clk 0:02:05.7]} 18... h5 {[%clk 0:02:30]} 19. c4 {[%clk 0:01:45.4]}
19... Rxc4 {[%clk 0:02:08.6]} 20. Rfc1 {[%clk 0:01:44.7]} 20... Rxc1+ {[%clk
0:02:08.2]} 21. Rxc1 {[%clk 0:01:43.9]} 21... Kg8 {[%clk 0:02:08.2]} 22. Qb7
{[%clk 0:01:37.6]} 22... Qh4 {[%clk 0:02:01.3]} 23. Rc8+ {[%clk 0:01:22.8]}
23... Kh7 {[%clk 0:02:01.2]} 24. Rxh8+ {[%clk 0:01:23.1]} 24... Kxh8 {[%clk
0:02:00.2]} 25. Qxf7 {[%clk 0:01:22.3]} 25... Qg4 {[%clk 0:01:33]} 26. Qf3
{[%clk 0:00:36.2]} 26... Qxf3 {[%clk 0:01:19.3]} 27. gxf3 {[%clk 0:00:37.1]}
27... Kh7 {[%clk 0:00:57.7]} 28. a4 {[%clk 0:00:36.4]} 28... Kg6 {[%clk
0:00:58.2]} 29. f4 {[%clk 0:00:35.9]} 29... Kf5 {[%clk 0:00:58.5]} 30. Be3
{[%clk 0:00:32.3]} 30... Nc3 {[%clk 0:00:47.7]} 31. Bxb6 {[%clk 0:00:26.4]}
31... Nxa4 {[%clk 0:00:47.9]} 32. Be3 {[%clk 0:00:20.9]} 32... Nc3 {[%clk
0:00:40.7]} 33. Kg2 {[%clk 0:00:20.8]} 33... Ke4 {[%clk 0:00:40.8]} 34. Kg3
{[%clk 0:00:20.2]} 34... g6 {[%clk 0:00:27.5]} 35. Kh4 {[%clk 0:00:19.1]} 35...
Kf5 {[%clk 0:00:25.6]} 36. Kg3 {[%clk 0:00:19]} 36... Ke4 {[%clk 0:00:20.9]} 37.
Kh4 {[%clk 0:00:18.9]} 37... Kf5 {[%clk 0:00:20.3]} 38. Kg3 {[%clk 0:00:19.1]}
38... Ne4+ {[%clk 0:00:10.2]} 39. Kf3 {[%clk 0:00:19.1]} 39... Nc3 {[%clk
0:00:10.8]} 40. Kg3 {[%clk 0:00:18.8]} 1/2-1/2